[Event "FIDE WCCC Open-08 2024"]
[Site "Montesilvano"]
[Date "2024.11.26"]
[Round "11.22"]
[White "Vo, Daniel"]
[Black "Saathvik Chakravarthy Ramayana"]
[Result "1-0"]
[ECO "A01"]
[WhiteElo "1711"]
[BlackElo "1466"]
[Annotator "NA RC"]
[PlyCount "91"]
[EventDate "2024.11.18"]
[EventType "swiss"]
[EventCountry "ITA"]
[SourceTitle "playchess.com"]
[Source "ChessBase"]
[SourceQuality "1"]
[TimeControl "5400+30"]

1. b3 {[%emt 0:00:09]} e5 {[%emt 0:05:14]} 2. Bb2 {[%emt 0:00:27]} Nc6 {[%emt 0:00:39]} 3. e3 {[%emt 0:00:19]} d5 {[%emt 0:00:31]} 4. Bb5 {[%emt 0:00:14]} Bd6 {[%emt 0:01:51]} 5. Nf3 {[%emt 0:02:08]} f6 {[%emt 0:08:03]} 6. d4 {[%emt 0:02:05]} e4 {[%emt 0:00:59]} 7. Nfd2 {[%emt 0:02:00]} Nge7 {[%emt 0:14:55]} 8. c4 {[%emt 0:00:23]} Bb4 {[%emt 0:05:52]} 9. O-O {[%emt 0:07:22]} Bxd2 {[%emt 0:10:11]} 10. Nxd2 {[%emt 0:00:56]} Be6 {[%emt 0:03:33]} 11. Rc1 {[%emt 0:09:09]} O-O {[%emt 0:08:39]} 12. cxd5 {[%emt 0:10:21]} Bxd5 {[%emt 0:02:54]} 13. Ba3 {[%emt 1:01:27]} f5 {[%emt 0:04:51]} 14. Qh5 {[%emt 0:00:00]} Rf6 {[%emt 0:01:51]} 15. Rc2 {[%emt 0:00:00]} Rg6 {[%emt 0:10:10]} 16. Bc4 {[%emt 0:00:00]} Qe8 {[%emt 0:07:56]} 17. Bxd5+ {[%emt 0:00:00]} Nxd5 {[%emt 0:10:51]} 18. Qxf5 {[%emt 0:00:00]} Nf6 {[%emt 0:00:00]} 19. d5 {[%emt 0:00:00]} Ne7 {[%emt 0:00:00]} 20. Qe6+ {[%emt 0:03:30]} Kh8 {[%emt 0:00:00]} 21. Qxe7 {[%emt 0:00:00]} Qxe7 22. Bxe7 {[%emt 0:00:00]} Nxd5 {[%emt 0:00:00]} 23. Ba3 {[%emt 0:00:00]} Re8 {[%emt 0:00:00]} 24. Rc4 {[%emt 0:00:00]} b5 {[%emt 0:00:00]} 25. Rxe4 {[%emt 0:00:00]} Rxe4 {[%emt 0:00:00]} 26. Nxe4 {[%emt 0:00:00]} b4 {[%emt 0:00:00]} 27. Bb2 {[%emt 0:00:00]} Ra6 {[%emt 0:00:00]} 28. Rd1 {[%emt 0:00:00]} c6 {[%emt 0:00:00]} 29. Rd2 {[%emt 0:00:00]} Kg8 {[%emt 0:00:20]} 30. Bd4 {[%emt 0:00:00]} Ra5 {[%emt 0:00:25]} 31. Rc2 {[%emt 0:00:00]} Ra6 {[%emt 0:00:48]} 32. Nc5 {[%emt 0:00:00]} Ra5 {[%emt 0:00:19]} 33. e4 {[%emt 0:00:00]} Nc3 {[%emt 0:00:09]} 34. Nb7 {[%emt 0:00:00]} Rxa2 {[%emt 0:00:25]} 35. Rxa2 {[%emt 0:00:00]} Nxa2 {[%emt 0:00:06]} 36. Bxa7 {[%emt 0:00:00]} Nc1 {[%emt 0:00:16]} 37. Na5 {[%emt 0:00:00]} Kf7 {[%emt 0:00:36]} 38. Kf1 {[%emt 0:00:00]} Ke6 {[%emt 0:00:16]} 39. Be3 {[%emt 0:09:30]} Na2 {[%emt 0:00:09]} 40. Nxc6 {[%emt 0:00:00]} Kd6 {[%emt 0:00:08]} 41. Nd4 {[%emt 0:00:00]} Ke5 {[%emt 0:00:09]} 42. f3 {[%emt 0:00:00]} h5 {[%emt 0:00:27]} 43. Ke1 {[%emt 0:00:00]} Nc3 {[%emt 0:00:09]} 44. Nc6+ {[%emt 0:00:00]} Kd6 {[%emt 0:00:12]} 45. Nxb4 {[%emt 0:00:00]} h4 {[%emt 0:00:13]} 46. Bd4 {[%emt 0:00:00]} 1-0

[Event "FIDE WCCC Open-08 2024"]
[Site "Montesilvano"]
[Date "2024.11.26"]
[Round "11.23"]
[White "Movsisyan, Samvel"]
[Black "Mohamed Fouad, Yahia"]
[Result "1-0"]
[ECO "B12"]
[WhiteElo "1604"]
[BlackElo "1705"]
[Annotator "NA RC"]
[PlyCount "86"]
[EventDate "2024.11.18"]
[EventType "swiss"]
[EventCountry "ITA"]
[SourceTitle "playchess.com"]
[Source "ChessBase"]
[SourceQuality "1"]
[TimeControl "5400+30"]

1. e4 {[%emt 0:00:03]} c6 {[%emt 0:00:14]} 2. d4 {[%emt 0:00:08]} d5 {[%emt 0:00:08]} 3. e5 {[%emt 0:00:07]} Bf5 {[%emt 0:00:31]} 4. Nf3 {[%emt 0:00:54]} e6 {[%emt 0:00:58]} 5. Be3 {[%emt 0:00:27]} Nd7 {[%emt 0:00:34]} 6. Be2 {[%emt 0:01:33]} Qb6 {[%emt 0:02:11]} 7. b3 {[%emt 0:01:15]} Ne7 {[%emt 0:03:00]} 8. O-O {[%emt 0:00:17]} Bg6 {[%emt 0:00:27]} 9. c4 {[%emt 0:00:49]} Nf5 {[%emt 0:00:17]} 10. c5 {[%emt 0:01:06]} Qc7 {[%emt 0:00:37]} 11. b4 {[%emt 0:00:18]} b6 {[%emt 0:00:55]} 12. Nc3 {[%emt 0:03:20]} bxc5 {[%emt 0:01:40]} 13. bxc5 {[%emt 0:00:12]} Nxe3 {[%emt 0:01:13]} 14. fxe3 {[%emt 0:00:06]} Be7 {[%emt 0:00:38]} 15. Bd3 {[%emt 0:00:57]} O-O {[%emt 0:03:07]} 16. Bxg6 {[%emt 0:00:12]} hxg6 {[%emt 0:00:15]} 17. e4 {[%emt 0:00:15]} Qa5 {[%emt 0:01:37]} 18. Qd2 {[%emt 0:01:01]} Rfd8 {[%emt 0:01:46]} 19. Nxd5 {[%emt 0:00:09]} Qxd2 {[%emt 0:00:56]} 20. Nxe7+ {[%emt 0:00:07]} Kf8 {[%emt 0:00:47]} 21. Nxg6+ {[%emt 0:00:12]} fxg6 {[%emt 0:01:03]} 22. Nxd2+ {[%emt 0:00:06]} Kg8 {[%emt 0:00:05]} 23. Nc4 {[%emt 0:00:18]} Rab8 {[%emt 0:02:16]} 24. Rab1 {[%emt 0:00:14]} Nf8 {[%emt 0:00:56]} 25. Nd6 {[%emt 0:00:10]} Nh7 {[%emt 0:00:38]} 26. h4 {[%emt 0:00:26]} g5 {[%emt 0:00:46]} 27. d5 {[%emt 0:00:54]} cxd5 {[%emt 0:00:27]} 28. c6 {[%emt 0:00:07]} Rxb1 {[%emt 0:00:25]} 29. Rxb1 {[%emt 0:00:06]} d4 {[%emt 0:00:33]} 30. c7 {[%emt 0:00:11]} Rf8 {[%emt 0:00:13]} 31. Rb8 {[%emt 0:00:05]} d3 {[%emt 0:00:16]} 32. Rxf8+ {[%emt 0:00:06]} Nxf8 {[%emt 0:00:10]} 33. c8=Q {[%emt 0:00:08]} d2 {[%emt 0:00:15]} 34. Qc2 {[%emt 0:00:05]} d1=Q+ {[%emt 0:00:24]} 35. Qxd1 {[%emt 0:00:06]} gxh4 {[%emt 0:00:07]} 36. Qh5 {[%emt 0:00:09]} g6 {[%emt 0:00:17]} 37. Qxh4 {[%emt 0:00:12]} Kg7 {[%emt 0:00:08]} 38. Qf6+ {[%emt 0:00:05]} Kg8 {[%emt 0:00:07]} 39. Qf7+ {[%emt 0:00:05]} Kh8 {[%emt 0:00:11]} 40. Qxf8+ {[%emt 0:00:05]} Kh7 {[%emt 0:00:06]} 41. Nf7 {[%emt 0:00:09]} g5 {[%emt 0:00:08]} 42. Nxg5+ {[%emt 0:00:49]} Kg6 {[%emt 0:00:06]} 43. Qf4 {[%emt 0:00:12]} Kh5 {[%emt 0:00:06]} 1-0

[Event "FIDE WCCC Open-08 2024"]
[Site "Montesilvano"]
[Date "2024.11.26"]
[Round "11.26"]
[White "Lan, Kai Zhou"]
[Black "Muratshin, Ramazan"]
[Result "0-1"]
[ECO "C06"]
[WhiteElo "1784"]
[BlackElo "1597"]
[Annotator "NA RC"]
[PlyCount "60"]
[EventDate "2024.11.18"]
[EventType "swiss"]
[EventCountry "ITA"]
[SourceTitle "playchess.com"]
[Source "ChessBase"]
[SourceQuality "1"]
[TimeControl "5400+30"]

1. e4 {[%emt 0:00:02]} e6 {[%emt 0:00:09]} 2. d4 {[%emt 0:01:05]} d5 {[%emt 0:00:10]} 3. Nd2 {[%emt 0:00:17]} Nf6 {[%emt 0:00:23]} 4. e5 {[%emt 0:00:08]} Nfd7 {[%emt 0:00:08]} 5. Bd3 {[%emt 0:00:16]} c5 {[%emt 0:00:06]} 6. c3 {[%emt 0:00:07]} Nc6 {[%emt 0:00:04]} 7. Ndf3 {[%emt 0:00:04]} cxd4 {[%emt 0:00:30]} 8. cxd4 {[%emt 0:00:08]} Bb4+ {[%emt 0:00:13]} 9. Bd2 {[%emt 0:01:20]} Qb6 {[%emt 1:33:17]} 10. Ne2 {[%emt 0:04:30]} Nf8 {[%emt 0:00:00]} 11. h4 {[%emt 0:03:22]} Bxd2+ {[%emt 0:00:00]} 12. Qxd2 {[%emt 0:00:19]} Qb4 {[%emt 0:00:00]} 13. Nc3 {[%emt 0:00:56]} a6 {[%emt 0:00:00]} 14. h5 {[%emt 0:03:43]} h6 {[%emt 0:00:00]} 15. a3 {[%emt 0:02:44]} Qa5 {[%emt 0:00:00]} 16. Qf4 {[%emt 0:00:52]} Nb4 {[%emt 0:00:00]} 17. Bb1 {[%emt 0:00:13]} Bd7 {[%emt 0:00:00]} 18. O-O {[%emt 0:04:05]} Nc6 {[%emt 0:00:00]} 19. Nd2 {[%emt 0:00:28]} Qb6 {[%emt 0:00:00]} 20. Nce4 {[%emt 0:07:27]} Nxd4 {[%emt 0:00:00]} 21. Nd6+ {[%emt 0:00:18]} Qxd6 {[%emt 0:00:00]} 22. Qxf7+ {[%emt 0:00:19]} Kxf7 {[%emt 0:00:00]} 23. exd6 {[%emt 0:00:16]} Bb5 {[%emt 0:00:00]} 24. Re1 {[%emt 0:00:20]} Rd8 {[%emt 0:00:00]} 25. a4 {[%emt 0:00:11]} Bc4 {[%emt 0:00:00]} 26. Re3 {[%emt 0:01:22]} a5 {[%emt 0:00:00]} 27. b3 {[%emt 0:01:01]} Ba6 {[%emt 0:00:00]} 28. Rd3 {[%emt 0:00:12]} Bxd3 {[%emt 0:00:00]} 29. Bxd3 {[%emt 0:00:09]} Rxd6 {[%emt 0:00:00]} 30. Rc1 {[%emt 0:00:11]} Rc6 {[%emt 0:00:00]} 0-1

[Event "FIDE WCCC Open-08 2024"]
[Site "Montesilvano"]
[Date "2024.11.26"]
[Round "11.27"]
[White "Tuguldur, Baatarchuluun"]
[Black "Alloussi, Arian"]
[Result "1-0"]
[ECO "C84"]
[WhiteElo "1590"]
[BlackElo "1745"]
[Annotator "NA RC"]
[PlyCount "59"]
[EventDate "2024.11.18"]
[EventType "swiss"]
[EventCountry "ITA"]
[SourceTitle "playchess.com"]
[Source "ChessBase"]
[SourceQuality "1"]
[TimeControl "5400+30"]

1. e4 {[%emt 0:00:11]} e5 {[%emt 0:00:06]} 2. Nf3 {[%emt 0:00:24]} Nc6 {[%emt 0:00:06]} 3. Bb5 {[%emt 0:01:18]} a6 {[%emt 0:00:09]} 4. Ba4 {[%emt 0:00:39]} Nf6 {[%emt 0:00:11]} 5. d3 {[%emt 0:00:52]} d6 {[%emt 0:05:30]} 6. c3 {[%emt 0:01:18]} Be7 {[%emt 0:00:46]} 7. O-O {[%emt 0:00:19]} b5 {[%emt 0:03:51]} 8. Bc2 {[%emt 0:00:55]} O-O {[%emt 0:02:11]} 9. Re1 {[%emt 0:04:19]} Bb7 {[%emt 0:03:42]} 10. Nbd2 {[%emt 0:01:45]} Re8 {[%emt 0:03:36]} 11. Nf1 {[%emt 0:01:13]} Bf8 {[%emt 0:02:14]} 12. Bg5 {[%emt 0:02:28]} g6 {[%emt 0:02:01]} 13. Qd2 {[%emt 0:00:27]} Bg7 {[%emt 0:01:23]} 14. Ng3 {[%emt 0:01:12]} Qd7 {[%emt 0:04:26]} 15. Bd1 {[%emt 0:01:27]} d5 {[%emt 0:02:40]} 16. Bxf6 {[%emt 0:02:09]} Bxf6 {[%emt 0:00:25]} 17. exd5 {[%emt 0:00:31]} Qxd5 {[%emt 0:00:39]} 18. Bb3 {[%emt 0:00:05]} Qd7 {[%emt 0:00:46]} 19. Ne4 {[%emt 0:00:43]} Bg7 {[%emt 0:05:06]} 20. Nc5 {[%emt 0:02:29]} Qc8 {[%emt 0:00:36]} 21. d4 {[%emt 0:00:44]} Rb8 {[%emt 0:03:18]} 22. dxe5 {[%emt 0:00:31]} Na5 {[%emt 0:04:56]} 23. e6 {[%emt 0:02:20]} Nxb3 {[%emt 0:01:24]} 24. exf7+ {[%emt 0:00:58]} Kxf7 {[%emt 0:00:30]} 25. axb3 {[%emt 0:00:27]} Bxf3 {[%emt 0:03:11]} 26. Qf4+ {[%emt 0:01:02]} Kg8 {[%emt 0:03:11]} 27. Qxf3 {[%emt 0:00:16]} Rxe1+ {[%emt 0:04:00]} 28. Rxe1 {[%emt 0:00:10]} Rb6 {[%emt 0:00:46]} 29. Qd5+ {[%emt 0:00:26]} Kh8 {[%emt 0:00:11]} 30. Qf7 {[%emt 0:00:29]} 1-0

[Event "FIDE WCCC Open-08 2024"]
[Site "Montesilvano"]
[Date "2024.11.26"]
[Round "11.28"]
[White "Kalinin, Bogdan"]
[Black "Kapitanski, Furion"]
[Result "0-1"]
[ECO "C56"]
[WhiteElo "1548"]
[BlackElo "1707"]
[Annotator "NA RC"]
[PlyCount "68"]
[EventDate "2024.11.18"]
[EventType "swiss"]
[EventCountry "ITA"]
[SourceTitle "playchess.com"]
[Source "ChessBase"]
[SourceQuality "1"]
[TimeControl "5400+30"]

1. e4 {[%emt 0:00:03]} e5 {[%emt 0:00:37]} 2. Nf3 {[%emt 0:00:09]} Nc6 {[%emt 0:00:05]} 3. Bc4 {[%emt 0:00:13]} Nf6 {[%emt 0:00:07]} 4. d4 {[%emt 0:00:20]} exd4 {[%emt 0:02:56]} 5. O-O {[%emt 0:00:33]} Nxe4 {[%emt 0:00:17]} 6. Re1 {[%emt 0:00:20]} d5 {[%emt 0:00:03]} 7. Bxd5 {[%emt 0:00:20]} Qxd5 {[%emt 0:00:03]} 8. Nc3 {[%emt 0:00:16]} Qh5 {[%emt 0:00:05]} 9. Nxe4 {[%emt 0:00:15]} Be7 {[%emt 0:00:21]} 10. Bg5 {[%emt 0:00:24]} Bg4 {[%emt 0:00:08]} 11. Bxe7 {[%emt 0:06:08]} Nxe7 {[%emt 0:15:32]} 12. Qxd4 {[%emt 0:10:29]} Bxf3 {[%emt 0:00:37]} 13. gxf3 {[%emt 0:00:43]} Qxf3 {[%emt 0:19:39]} 14. Qxg7 {[%emt 0:15:40]} O-O-O {[%emt 0:00:46]} 15. Ng3 {[%emt 0:15:19]} Nd5 {[%emt 0:26:43]} 16. Re4 {[%emt 0:09:44]} Nf4 {[%emt 0:01:11]} 17. Rxf4 {[%emt 0:05:42]} Qxf4 {[%emt 0:00:13]} 18. Qc3 {[%emt 0:01:18]} h5 {[%emt 0:01:30]} 19. Ne2 {[%emt 0:02:04]} Qg4+ {[%emt 0:00:47]} 20. Kf1 {[%emt 0:00:16]} Rhg8 {[%emt 0:00:29]} 21. Ke1 {[%emt 0:03:35]} Rge8 {[%emt 0:00:36]} 22. Qe3 {[%emt 0:02:51]} Rxe3 {[%emt 0:00:28]} 23. fxe3 {[%emt 0:00:14]} Qf3 {[%emt 0:00:07]} 24. Rd1 {[%emt 0:01:00]} Qh1+ {[%emt 0:00:15]} 25. Kf2 {[%emt 0:00:11]} Rxd1 {[%emt 0:00:11]} 26. Ng3 {[%emt 0:00:22]} Qxh2+ {[%emt 0:01:07]} 27. Kf3 {[%emt 0:00:10]} h4 {[%emt 0:00:08]} 28. Nf5 {[%emt 0:00:21]} h3 {[%emt 0:00:31]} 29. Ke4 {[%emt 0:00:17]} Qg2+ {[%emt 0:00:26]} 30. Ke5 {[%emt 0:00:16]} h2 {[%emt 0:00:14]} 31. Kf4 {[%emt 0:00:13]} f6 {[%emt 0:00:17]} 32. Ng3 {[%emt 0:00:35]} h1=Q {[%emt 0:00:11]} 33. Nxh1 {[%emt 0:00:37]} Rf1+ {[%emt 0:00:11]} 34. Nf2 {[%emt 0:00:08]} Rxf2# {[%emt 0:00:19]} 0-1

[Event "FIDE WCCC Open-08 2024"]
[Site "Montesilvano"]
[Date "2024.11.26"]
[Round "11.29"]
[White "Kiss, Lorinc Istvan"]
[Black "Arsenijevic, Matija"]
[Result "0-1"]
[ECO "B13"]
[WhiteElo "1501"]
[BlackElo "1700"]
[Annotator "NA RC"]
[PlyCount "136"]
[EventDate "2024.11.18"]
[EventType "swiss"]
[EventCountry "ITA"]
[SourceTitle "playchess.com"]
[Source "ChessBase"]
[SourceQuality "1"]
[TimeControl "5400+30"]

1. e4 {[%emt 0:00:02]} c6 {[%emt 0:00:04]} 2. d4 {[%emt 0:01:58]} d5 {[%emt 0:00:04]} 3. exd5 {[%emt 0:02:30]} cxd5 {[%emt 0:00:19]} 4. Bd3 {[%emt 0:02:30]} Nc6 {[%emt 0:00:25]} 5. c3 {[%emt 0:02:30]} Nf6 {[%emt 0:00:26]} 6. Bf4 {[%emt 0:02:32]} Bg4 {[%emt 0:02:11]} 7. Nf3 {[%emt 0:06:49]} e6 {[%emt 0:02:00]} 8. Nbd2 {[%emt 0:02:08]} Bd6 {[%emt 0:02:05]} 9. Bxd6 {[%emt 0:01:14]} Qxd6 {[%emt 0:00:10]} 10. O-O {[%emt 0:03:44]} O-O {[%emt 0:00:37]} 11. Re1 {[%emt 0:03:28]} Rfc8 {[%emt 0:01:39]} 12. Qb3 {[%emt 0:01:07]} Bxf3 {[%emt 0:06:35]} 13. Nxf3 {[%emt 0:00:25]} Na5 {[%emt 0:00:39]} 14. Qa4 {[%emt 0:02:26]} Nc4 {[%emt 0:01:14]} 15. Qc2 {[%emt 0:11:23]} h6 {[%emt 0:04:56]} 16. Ne5 {[%emt 0:03:43]} b5 {[%emt 0:02:24]} 17. a4 {[%emt 0:04:48]} b4 {[%emt 0:05:03]} 18. Qe2 {[%emt 0:02:27]} Na5 {[%emt 0:03:32]} 19. Ba6 {[%emt 0:03:34]} Rc7 {[%emt 0:03:19]} 20. Qd3 {[%emt 0:05:45]} Nd7 {[%emt 0:10:33]} 21. Rac1 {[%emt 0:14:06]} bxc3 {[%emt 0:07:03]} 22. bxc3 {[%emt 0:01:28]} Nxe5 {[%emt 0:02:00]} 23. dxe5 {[%emt 0:02:06]} Qc5 {[%emt 0:01:28]} 24. Qd4 {[%emt 0:05:49]} Nb3 {[%emt 0:01:31]} 25. Qxc5 {[%emt 0:01:08]} Nxc5 {[%emt 0:00:14]} 26. Be2 {[%emt 0:03:51]} Nxa4 {[%emt 0:01:54]} 27. c4 {[%emt 0:00:44]} dxc4 {[%emt 0:00:42]} 28. Rxc4 {[%emt 0:00:37]} Rxc4 {[%emt 0:00:15]} 29. Bxc4 {[%emt 0:00:08]} Rc8 {[%emt 0:00:17]} 30. Bd3 {[%emt 0:01:24]} Nb2 {[%emt 0:00:25]} 31. Be4 {[%emt 0:00:21]} a5 {[%emt 0:00:51]} 32. h3 {[%emt 0:00:27]} a4 {[%emt 0:00:37]} 33. Rb1 {[%emt 0:00:37]} a3 {[%emt 0:00:57]} 34. Ra1 {[%emt 0:00:48]} Rc4 {[%emt 0:01:06]} 35. Bb1 {[%emt 0:00:48]} Rc1+ {[%emt 0:00:56]} 36. Kh2 {[%emt 0:01:07]} g6 {[%emt 0:00:37]} 37. Rxa3 {[%emt 0:02:51]} Rxb1 {[%emt 0:00:07]} 38. Rb3 {[%emt 0:00:11]} Kg7 {[%emt 0:00:44]} 39. h4 {[%emt 0:00:42]} g5 {[%emt 0:00:49]} 40. h5 {[%emt 0:00:14]} Kf8 {[%emt 0:01:28]} 41. Kg3 {[%emt 0:00:39]} Ke8 {[%emt 0:00:53]} 42. Kf3 {[%emt 0:01:01]} Nc4 {[%emt 0:00:35]} 43. Rxb1 {[%emt 0:01:08]} Nd2+ {[%emt 0:00:26]} 44. Kg4 {[%emt 0:00:06]} Nxb1 {[%emt 0:00:05]} 45. f4 {[%emt 0:00:21]} gxf4 {[%emt 0:00:09]} 46. Kxf4 {[%emt 0:00:20]} Ke7 {[%emt 0:00:13]} 47. g4 {[%emt 0:00:31]} f6 {[%emt 0:00:30]} 48. exf6+ {[%emt 0:03:38]} Kxf6 {[%emt 0:00:19]} 49. g5+ {[%emt 0:00:28]} hxg5+ {[%emt 0:00:10]} 50. Kg4 {[%emt 0:00:26]} Nc3 {[%emt 0:00:25]} 51. h6 {[%emt 0:00:16]} Ne4 {[%emt 0:00:18]} 52. Kf3 {[%emt 0:00:34]} Nd6 {[%emt 0:00:13]} 53. Kg4 {[%emt 0:00:23]} Nf7 {[%emt 0:00:08]} 54. h7 {[%emt 0:00:06]} Kg7 {[%emt 0:00:11]} 55. h8=Q+ {[%emt 0:03:33]} Kxh8 {[%emt 0:00:14]} 56. Kf3 {[%emt 0:00:00]} Kg7 {[%emt 0:00:07]} 57. Ke4 {[%emt 0:00:00]} Kg6 {[%emt 0:00:04]} 58. Kf3 {[%emt 0:00:00]} Kf5 {[%emt 0:00:05]} 59. Kg3 {[%emt 0:00:00]} Ne5 {[%emt 0:00:05]} 60. Kf2 {[%emt 0:00:00]} Kf4 {[%emt 0:00:06]} 61. Kg2 {[%emt 0:00:00]} g4 {[%emt 0:00:06]} 62. Kh2 {[%emt 0:00:00]} g3+ {[%emt 0:00:13]} 63. Kg2 {[%emt 0:00:00]} Ng6 {[%emt 0:00:07]} 64. Kh3 {[%emt 0:00:04]} Nh4 {[%emt 0:00:16]} 65. Kxh4 {[%emt 0:00:29]} g2 {[%emt 0:00:06]} 66. Kh5 {[%emt 0:00:11]} g1=Q {[%emt 0:00:13]} 67. Kh6 {[%emt 0:00:12]} Qg8 {[%emt 0:00:06]} 68. Kh5 {[%emt 0:00:24]} Qg5# {[%emt 0:00:30]} 0-1

[Event "FIDE WCCC Open-08 2024"]
[Site "Montesilvano"]
[Date "2024.11.26"]
[Round "11.30"]
[White "Lau, Great Boyou"]
[Black "Su, Milo"]
[Result "0-1"]
[ECO "B26"]
[WhiteElo "1514"]
[BlackElo "1696"]
[Annotator "NA RC"]
[PlyCount "138"]
[EventDate "2024.11.18"]
[EventType "swiss"]
[EventCountry "ITA"]
[SourceTitle "playchess.com"]
[Source "ChessBase"]
[SourceQuality "1"]
[TimeControl "5400+30"]

1. e4 {[%emt 0:00:01]} c5 {[%emt 0:00:05]} 2. Nc3 {[%emt 0:00:20]} Nc6 {[%emt 0:00:14]} 3. Nge2 {[%emt 0:00:20]} g6 {[%emt 0:00:51]} 4. g3 {[%emt 0:00:19]} Bg7 {[%emt 0:01:09]} 5. Bg2 {[%emt 0:00:15]} e6 {[%emt 0:00:54]} 6. O-O {[%emt 0:00:19]} Nge7 {[%emt 0:00:27]} 7. d3 {[%emt 0:00:34]} O-O {[%emt 0:00:30]} 8. Be3 {[%emt 0:00:24]} d6 {[%emt 0:00:40]} 9. Qd2 {[%emt 0:04:52]} Nd4 {[%emt 0:00:21]} 10. Bh6 {[%emt 0:11:29]} Bxh6 {[%emt 0:02:44]} 11. Qxh6 {[%emt 0:00:19]} Nxc2 {[%emt 0:00:16]} 12. Rac1 {[%emt 0:02:09]} Nb4 {[%emt 0:00:47]} 13. Rcd1 {[%emt 0:05:54]} Rb8 {[%emt 0:03:42]} 14. f4 {[%emt 0:06:36]} f5 {[%emt 0:01:11]} 15. Rd2 {[%emt 0:24:10]} b6 {[%emt 0:04:12]} 16. a3 {[%emt 0:00:27]} Nbc6 {[%emt 0:00:44]} 17. d4 {[%emt 0:10:22]} Ba6 {[%emt 0:07:03]} 18. d5 {[%emt 0:18:42]} exd5 {[%emt 0:01:14]} 19. exf5 {[%emt 0:05:50]} Nxf5 {[%emt 0:00:21]} 20. Bxd5+ {[%emt 0:00:09]} Kh8 {[%emt 0:00:23]} 21. Qh3 {[%emt 0:00:56]} Ncd4 {[%emt 0:00:39]} 22. Rf2 {[%emt 0:02:11]} Nxe2+ {[%emt 0:01:25]} 23. Nxe2 {[%emt 0:00:23]} Re8 {[%emt 0:01:34]} 24. Bc6 {[%emt 0:01:32]} Re7 {[%emt 0:01:01]} 25. b4 {[%emt 0:01:30]} Bc8 {[%emt 0:02:39]} 26. Qf1 {[%emt 0:00:47]} Be6 {[%emt 0:02:34]} 27. Qa1+ {[%emt 0:00:16]} Kg8 {[%emt 0:00:18]} 28. Nc3 {[%emt 0:00:37]} Nd4 {[%emt 0:01:01]} 29. Bg2 {[%emt 0:01:07]} Nb3 {[%emt 0:00:31]} 30. Qb2 {[%emt 0:00:47]} Nxd2 {[%emt 0:00:10]} 31. Rxd2 {[%emt 0:00:39]} cxb4 {[%emt 0:02:26]} 32. axb4 {[%emt 0:00:24]} Rf7 {[%emt 0:02:54]} 33. Ne4 {[%emt 0:00:48]} Qe7 {[%emt 0:19:31]} 34. Ng5 {[%emt 0:00:41]} Bc4 {[%emt 0:00:30]} 35. Rd1 {[%emt 0:00:52]} Qe3+ {[%emt 0:01:00]} 36. Kh1 {[%emt 0:00:44]} Rf5 {[%emt 0:01:51]} 37. Qc1 {[%emt 0:00:23]} Qxc1 {[%emt 0:00:40]} 38. Rxc1 {[%emt 0:00:06]} d5 {[%emt 0:01:11]} 39. Ne6 {[%emt 0:00:31]} Re8 {[%emt 0:01:09]} 40. g4 {[%emt 0:00:35]} Rf7 {[%emt 0:00:46]} 41. f5 {[%emt 0:00:49]} gxf5 {[%emt 0:00:26]} 42. gxf5 {[%emt 0:00:18]} Rxf5 {[%emt 0:00:16]} 43. Bh3 {[%emt 0:00:43]} Rf6 {[%emt 0:01:25]} 44. Rg1+ {[%emt 0:00:11]} Rg6 {[%emt 0:00:26]} 45. Rxg6+ {[%emt 0:00:43]} hxg6 {[%emt 0:00:09]} 46. Kg1 {[%emt 0:00:18]} a5 {[%emt 0:00:19]} 47. bxa5 {[%emt 0:00:24]} bxa5 {[%emt 0:00:05]} 48. Nc5 {[%emt 0:00:09]} d4 {[%emt 0:00:43]} 49. Bd7 {[%emt 0:00:23]} Re1+ {[%emt 0:00:07]} 50. Kf2 {[%emt 0:00:27]} Re2+ {[%emt 0:00:09]} 51. Kf3 {[%emt 0:00:25]} d3 {[%emt 0:00:05]} 52. Nxd3 {[%emt 0:00:54]} Bxd3 {[%emt 0:00:07]} 53. h4 {[%emt 0:00:10]} Re7 {[%emt 0:00:21]} 54. Ba4 {[%emt 0:00:14]} Re4 {[%emt 0:00:39]} 55. Bb3+ {[%emt 0:00:11]} Kg7 {[%emt 0:00:13]} 56. Ba2 {[%emt 0:00:16]} Rxh4 {[%emt 0:00:13]} 57. Bb3 {[%emt 0:00:33]} a4 {[%emt 0:00:09]} 58. Ba2 {[%emt 0:00:10]} a3 {[%emt 0:00:14]} 59. Kg3 {[%emt 0:00:10]} Rb4 {[%emt 0:00:07]} 60. Kf3 {[%emt 0:00:45]} Bc4 {[%emt 0:00:18]} 61. Bxc4 {[%emt 0:00:21]} Rxc4 {[%emt 0:00:05]} 62. Ke2 {[%emt 0:00:08]} a2 {[%emt 0:00:10]} 63. Kd3 {[%emt 0:00:06]} Rc1 {[%emt 0:00:06]} 64. Kd2 {[%emt 0:00:06]} a1=Q {[%emt 0:00:08]} 65. Kd3 {[%emt 0:00:10]} Qa4 {[%emt 0:00:10]} 66. Kd2 {[%emt 0:00:09]} Qc4 {[%emt 0:00:15]} 67. Ke3 {[%emt 0:00:06]} Rc3+ {[%emt 0:00:06]} 68. Kf2 {[%emt 0:00:19]} Qa2+ {[%emt 0:00:06]} 69. Ke1 {[%emt 0:00:07]} Rc1# {[%emt 0:45:45]} 0-1